bitfinex/quotes_SOLUSD_20250316
["timestamp","ask_amount","ask_price","bid_price","bid_amount"]
[1742141584676,51.25929225,130.39,130.35,0.063]
[1742141584975,14.3293,130.4,130.35,0.063]
[1742141585176,51.25929225,130.38,130.35,0.063]
[1742141585564,14.3293,130.4,130.35,0.063]
[1742141585565,51.25929225,130.39,130.35,0.063]
[1742141585964,7.6704,130.37,130.35,0.063]
[1742141586167,7.67,130.38,130.35,0.063]
[1742141586871,51.25929225,130.36,130.35,0.063]
[1742141587477,0.28432314,130.35,130.32,0.063]
[1742141587680,71.25929225,130.33,130.32,0.063]
[1742141587877,90.05110268,130.33,130.32,0.0001]
[1742141588090,97.72390268,130.33,130.32,0.0001]
[1742141588686,78.93209225,130.33,130.32,0.0001]
[1742141589554,7.6728,130.33,130.32,0.0001]
[1742141589761,58.93089225,130.35,130.32,0.0001]
[1742141590074,7.671,130.36,130.32,0.0001]
[1742141590379,7.6698,130.39,130.32,0.0001]
[1742141590581,58.92909225,130.39,130.32,0.0001]
[1742141590780,7.6698,130.39,130.32,0.0001]
[1742141591285,58.98919225,130.43,130.34,51.25929225]
[1742141591461,7.7299,130.43,130.37,51.25929225]
[1742141591662,0.063,130.43,130.39,51.25929225]
[1742141591862,0.063,130.43,130.34,132.05929225]
[1742141591863,0.063,130.43,130.38,12.1]
[1742141592075,0.063,130.43,130.38,19.7695]
[1742141592278,0.063,130.43,130.41,51.25929225]
[1742141592582,0.063,130.43,130.4,51.25929225]
[1742141592760,0.063,130.43,130.42,51.25929225]
[1742141593780,0.063,130.43,130.38,119.36131043]
[1742141594171,0.063,130.43,130.42,51.25929225]
[1742141594477,0.063,130.43,130.38,119.36131043]
[1742141594976,0.063,130.43,130.42,51.25929225]
[1742141595571,0.063,130.43,130.38,119.36131043]
[1742141595572,0.063,130.43,130.4,51.25929225]
[1742141595772,0.063,130.43,130.41,51.25929225]
[1742141596082,0.063,130.43,130.42,51.25929225]
[1742141596586,0.063,130.43,130.38,111.833972]
[1742141596761,0.063,130.43,130.41,51.25929225]
[1742141597087,0.063,130.43,130.39,51.25929225]
[1742141597590,51.32229225,130.43,130.38,51.25929225]
[1742141597887,51.32229225,130.43,130.37,51.25929225]
[1742141598078,51.25929225,130.4,130.32,92.7601]
[1742141598296,51.25929225,130.4,130.35,51.25929225]
[1742141598586,51.25929225,130.4,130.34,51.25929225]
[1742141599167,0.063,130.43,130.34,51.25929225]
[1742141599366,0.063,130.43,130.36,51.25929225]
[1742141599572,51.25929225,130.41,130.35,51.25929225]
[1742141599980,0.063,130.43,130.33,63.15929225]
[1742141599981,51.25929225,130.38,130.33,63.15929225]
[1742141600184,58.92969225,130.37,130.33,11.9]
[1742141600693,51.25929225,130.36,130.33,11.9]
[1742141600894,51.25929225,130.36,130.32,0.0001]
[1742141601081,51.25929225,130.35,130.32,0.0001]
[1742141601281,51.25929225,130.36,130.32,0.0001]
[1742141601467,7.6704,130.37,130.32,51.25939225]
[1742141601672,7.6692,130.39,130.32,0.0001]
[1742141601881,7.6688,130.4,130.35,51.25929225]
[1742141602274,51.25929225,130.38,130.32,0.0001]
[1742141602496,58.92809225,130.4,130.34,51.25929225]
[1742141602995,7.6675,130.42,130.35,51.25929225]
[1742141603296,51.25929225,130.4,130.34,51.25929225]
[1742141603476,26.8363,130.42,130.34,51.25929225]
[1742141603673,51.25929225,130.39,130.33,51.25929225]
[1742141603895,51.25929225,130.39,130.34,51.25929225]
[1742141604082,58.92829225,130.4,130.34,51.25929225]
[1742141604282,51.25929225,130.4,130.34,51.25929225]
[1742141604882,7.6685,130.41,130.36,51.25929225]
[1742141605091,58.92779225,130.41,130.35,51.25929225]
[1742141605898,51.25929225,130.4,130.32,80.8001]
[1742141606084,0.063,130.43,130.38,51.25929225]
[1742141606291,0.063,130.43,130.4,51.25929225]
[1742141606479,7.73,130.43,130.38,51.25929225]
[1742141606680,58.98929225,130.43,130.38,51.25929225]
[1742141606993,7.73,130.43,130.36,62.97929225]
[1742141607209,51.25929225,130.42,130.36,62.97929225]
[1742141607410,7.73,130.43,130.37,51.25929225]
[1742141607699,0.063,130.43,130.42,51.25929225]
[1742141607875,0.063,130.43,130.39,7.669]
[1742141608078,0.063,130.43,130.42,51.25929225]
[1742141608279,0.063,130.43,130.41,51.25929225]
[1742141608478,0.063,130.43,130.42,51.25929225]
[1742141609486,0.063,130.43,130.42,89.46076425]
[1742141609797,58.91969225,130.54,130.43,18.933972]
[1742141609996,58.91969225,130.54,130.46,20.0]
[1742141610203,58.91969225,130.54,130.48,51.25929225]
[1742141610413,51.25929225,130.54,130.49,51.25929225]
[1742141610716,14.0429,130.55,130.5,51.25929225]
[1742141610878,14.0429,130.55,130.49,51.25929225]
[1742141611404,65.30219225,130.55,130.49,51.25929225]
[1742141611603,14.0429,130.55,130.5,51.25929225]
[1742141612305,0.03,130.56,130.53,51.25929225]
[1742141612482,0.03,130.56,130.54,51.25929225]
[1742141612911,7.6893,130.56,130.53,51.25929225]
[1742141613090,0.03,130.56,130.53,51.25929225]
[1742141613807,0.03,130.56,130.5,7.6626]
[1742141614008,0.03,130.56,130.53,51.25929225]
[1742141614590,0.03,130.56,130.55,51.25929225]
[1742141615806,0.03,130.56,130.54,62.65929225]
[1742141616018,0.03,130.56,130.51,80.8]
[1742141616196,51.25929225,130.54,130.49,11.36]
[1742141616518,51.25929225,130.54,130.47,80.8]
[1742141616685,51.25929225,130.54,130.39,0.5]
[1742141616686,0.28432314,130.47,130.33,7.6724]
[1742141617003,51.25929225,130.4,130.34,51.25929225]
[1742141617216,18.933972,130.44,130.35,51.25929225]
[1742141617421,51.25929225,130.44,130.32,39.5272765]
[1742141617594,51.25929225,130.46,130.36,7.671]
[1742141617793,26.8259,130.47,130.33,0.14216157]
[1742141618008,51.25929225,130.43,130.37,51.25929225]
[1742141618302,26.8259,130.47,130.38,51.25929225]
[1742141618303,51.25929225,130.44,130.38,51.25929225]
[1742141618518,51.25929225,130.46,130.4,51.25929225]
[1742141618804,7.6642,130.48,130.44,51.25929225]
[1742141619006,58.92349225,130.48,130.42,51.25929225]
[1742141619205,26.8242,130.48,130.41,20.0]
[1742141619509,51.25929225,130.46,130.41,20.0]
[1742141619686,51.25929225,130.48,130.42,51.25929225]
[1742141619885,7.6628,130.5,130.45,51.25929225]
[1742141620294,51.25929225,130.49,130.43,51.25929225]
[1742141620488,51.25929225,130.49,130.41,20.0]
[1742141620489,51.25929225,130.45,130.41,20.0]
[1742141620998,51.25929225,130.44,130.38,62.73929225]
[1742141621612,7.6669,130.43,130.38,51.25929225]
[1742141621810,51.25929225,130.4,130.35,51.25929225]
[1742141622122,51.25929225,130.44,130.39,51.25929225]
[1742141622289,51.25929225,130.45,130.39,51.25929225]
[1742141622495,7.6645,130.47,130.41,51.25929225]
[1742141622711,51.25929225,130.46,130.41,51.25929225]
[1742141623011,51.25929225,130.45,130.39,51.25929225]
[1742141623199,51.25929225,130.44,130.38,143.43929225]
[1742141623409,51.25929225,130.43,130.38,62.63929225]
[1742141623604,7.6668,130.44,130.39,51.25929225]
[1742141624304,58.92609225,130.44,130.39,51.25929225]
[1742141624499,7.6651,130.46,130.4,51.25929225]
[1742141624699,51.25929225,130.45,130.39,51.25929225]
[1742141624893,7.6634,130.49,130.43,51.25929225]
[1742141625093,58.92269225,130.49,130.43,51.25929225]
[1742141625317,7.6634,130.49,130.45,51.25929225]
[1742141625628,7.6634,130.49,130.44,51.25929225]
[1742141626718,7.6634,130.49,130.42,20.0]
[1742141626892,51.25929225,130.46,130.41,51.25929225]
[1742141627097,51.25929225,130.44,130.39,62.53929225]
[1742141627402,26.8219,130.49,130.39,11.28]
[1742141627607,51.25929225,130.45,130.39,62.53929225]
[1742141627808,7.6663,130.44,130.39,62.53929225]
[1742141628121,7.6663,130.44,130.39,11.28]
[1742141628290,19.1585,130.49,130.39,37.74101043]
[1742141628494,70.41779225,130.49,130.44,51.25929225]
[1742141628920,7.6628,130.5,130.45,51.25929225]
[1742141629291,7.6628,130.5,130.46,51.25929225]
[1742141629493,7.6628,130.5,130.47,51.25929225]
[1742141629708,7.6628,130.5,130.46,51.25929225]
[1742141630315,65.30459225,130.51,130.46,51.25929225]
[1742141630505,14.0453,130.51,130.47,51.25929225]
[1742141630825,58.92169225,130.51,130.46,51.25929225]
[1742141631009,58.92169225,130.51,130.45,51.25929225]
[1742141631207,58.92169225,130.51,130.46,51.25929225]
[1742141631514,7.6624,130.51,130.46,51.25929225]
[1742141631900,7.6624,130.51,130.47,51.25929225]
[1742141632496,7.6624,130.51,130.46,7.6651]
[1742141632703,7.6616,130.53,130.49,51.25929225]
[1742141633417,58.91999225,130.54,130.49,51.25929225]
[1742141633619,7.6607,130.54,130.5,51.25929225]
[1742141633805,58.91999225,130.54,130.49,51.25929225]
[1742141634196,7.6607,130.54,130.49,51.25929225]
[1742141634401,7.6607,130.54,130.49,58.92249225]
[1742141635021,0.03,130.56,130.53,51.25929225]
[1742141635220,0.03,130.56,130.54,51.25929225]
[1742141635528,0.03,130.56,130.52,62.25929225]
[1742141635831,0.03,130.56,130.52,11.0]
[1742141636000,0.03,130.56,130.5,20.0]
[1742141636001,51.25929225,130.54,130.5,20.0]
[1742141636197,51.25929225,130.54,130.49,51.25929225]
[1742141636419,51.25929225,130.5,130.45,80.8]
[1742141636606,51.25929225,130.48,130.43,58.92619225]
[1742141636802,51.25929225,130.51,130.45,51.25929225]
[1742141637006,51.25929225,130.5,130.44,51.25929225]
[1742141637203,51.25929225,130.49,130.44,51.25929225]
[1742141637403,6.0039,130.54,130.47,51.25929225]
[1742141637618,51.25929225,130.52,130.47,51.25929225]
[1742141637827,6.0039,130.54,130.47,51.25929225]
[1742141638025,58.92029225,130.53,130.47,51.25929225]
[1742141638201,64.92389225,130.54,130.49,51.25929225]
[1742141638406,51.25929225,130.53,130.47,51.25929225]
[1742141638726,51.25929225,130.53,130.48,51.25929225]
[1742141638914,13.6646,130.54,130.48,51.25929225]
[1742141639126,64.92389225,130.54,130.48,51.25929225]
[1742141639630,13.6646,130.54,130.48,51.25929225]
[1742141639807,64.92389225,130.54,130.49,51.25929225]
[1742141640008,64.92389225,130.54,130.48,51.25929225]
[1742141640207,51.25929225,130.53,130.48,51.25929225]
[1742141640423,51.25929225,130.53,130.48,20.0]
[1742141640621,51.25929225,130.53,130.47,51.25929225]
[1742141640924,64.92389225,130.54,130.48,51.25929225]
[1742141641136,51.25929225,130.53,130.47,51.25929225]
[1742141641435,51.25929225,130.53,130.46,18.79181043]
[1742141641641,51.25929225,130.53,130.48,51.25929225]
[1742141641810,7.6616,130.53,130.47,58.92349225]
[1742141642005,58.92089225,130.53,130.48,51.25929225]
[1742141642208,7.6616,130.53,130.48,51.25929225]
[1742141642613,7.6616,130.53,130.49,51.25929225]
[1742141642814,58.91939225,130.55,130.5,51.25929225]
[1742141643017,0.03,130.56,130.52,51.25929225]
[1742141643241,0.03,130.56,130.54,51.25929225]
[1742141643627,0.03,130.56,130.52,71.25929225]
[1742141643824,0.03,130.56,130.52,78.92069225]
[1742141644018,0.03,130.56,130.54,51.25929225]
[1742141644531,0.03,130.56,130.55,51.25929225]
[1742141645113,0.03,130.56,130.54,51.25929225]
[1742141645325,0.03,130.56,130.52,71.25929225]
[1742141645841,0.03,130.56,130.52,78.92079225]
[1742141646132,0.03,130.56,130.52,78.92089225]
[1742141646321,0.03,130.56,130.52,27.6616]
[1742141646509,0.03,130.56,130.54,51.25929225]
[1742141647109,0.03,130.56,130.5,80.8]
[1742141647434,51.25929225,130.51,130.46,58.92439225]
[1742141647929,51.25929225,130.49,130.44,58.92549225]
[1742141648133,51.25929225,130.49,130.44,7.6662]
[1742141648340,6.1508,130.53,130.45,51.25929225]
[1742141648511,51.25929225,130.51,130.45,51.25929225]
[1742141648918,51.25929225,130.51,130.46,51.25929225]
[1742141649419,51.25929225,130.52,130.46,51.25929225]
[1742141649735,6.1508,130.53,130.43,88.4667]
[1742141649736,51.25929225,130.48,130.43,88.4667]
[1742141649928,51.25929225,130.46,130.42,7.6673]
[1742141650236,7.6642,130.48,130.39,139.72849225]
[1742141650439,7.6642,130.48,130.42,51.25929225]
[1742141650440,58.92349225,130.48,130.42,51.25929225]
[1742141650623,58.92349225,130.48,130.43,51.25929225]
[1742141650823,58.92349225,130.48,130.42,51.25929225]
[1742141651137,6.1508,130.53,130.45,51.25929225]
[1742141651351,51.25929225,130.5,130.44,51.25929225]
[1742141651533,7.6616,130.52,130.45,51.25929225]
[1742141651841,51.25929225,130.5,130.45,51.25929225]
[1742141652023,51.25929225,130.51,130.45,58.92489225]
[1742141652224,51.25929225,130.51,130.45,7.6656]
[1742141652422,6.1508,130.53,130.48,51.25929225]
[1742141652628,51.25929225,130.54,130.49,51.25929225]
[1742141652926,0.03,130.56,130.51,51.25929225]
[1742141653125,0.063,130.53,130.52,51.25929225]
[1742141654046,0.063,130.53,130.52,58.92089225]
[1742141655336,0.063,130.53,130.51,7.6621]
[1742141655642,0.063,130.53,130.52,51.25929225]
[1742141656031,0.063,130.53,130.52,58.92089225]
[1742141656235,0.063,130.53,130.52,159.80367483]
[1742141658244,0.063,130.53,130.52,158.65486425]
[1742141659350,0.063,130.53,130.52,139.72089225]
[1742141659551,0.063,130.53,130.52,158.65486425]
[1742141663957,0.063,130.53,130.51,7.662]
[1742141664343,0.063,130.53,130.51,58.92129225]
[1742141664547,0.063,130.53,130.52,51.25929225]
[1742141664956,0.063,130.53,130.52,58.92089225]
[1742141665160,0.063,130.53,130.52,41.91706803]
[1742141666057,0.063,130.53,130.48,283.52]
[1742141666262,34.31846803,130.53,130.48,213.2]
[1742141666454,34.31846803,130.53,130.48,34.25546803]
[1742141666863,0.063,130.53,130.49,34.25546803]
[1742141667038,0.063,130.53,130.5,34.25546803]
[1742141667242,0.063,130.53,130.51,34.25546803]
[1742141667749,0.063,130.53,130.52,34.25546803]
[1742141667956,0.063,130.53,130.48,80.8]
[1742141668155,0.063,130.53,130.48,115.05546803]
[1742141668351,34.31846803,130.53,130.48,80.8]
[1742141668939,34.25546803,130.52,130.44,88.4663]
[1742141669146,7.6628,130.5,130.44,80.8]
[1742141669363,41.91786803,130.51,130.46,34.25546803]
[1742141669553,7.7243,130.53,130.48,34.25546803]
[1742141671467,7.7243,130.53,130.46,34.25546803]
[1742141671468,34.25546803,130.51,130.46,34.25546803]
[1742141671653,26.8769,130.53,130.46,34.25546803]
[1742141671840,34.25546803,130.51,130.46,34.25546803]
[1742141672039,34.25546803,130.5,130.43,0.03]
[1742141672247,34.25546803,130.47,130.43,0.03]
[1742141672453,34.25546803,130.44,130.43,0.03]
[1742141672770,41.92176803,130.44,130.43,0.03]
[1742141673263,41.92126803,130.45,130.43,0.03]
[1742141673469,36.30336803,130.47,130.43,0.03]
[1742141673674,2.0479,130.47,130.43,0.03]
[1742141674266,34.25546803,130.45,130.43,0.03]
[1742141674568,34.25546803,130.44,130.43,0.03]
[1742141674769,41.92136803,130.45,130.43,0.03]
[1742141674979,41.92086803,130.46,130.43,0.03]
[1742141675266,2.0479,130.47,130.43,0.03]
[1742141675267,9.7125,130.47,130.43,0.03]
[1742141675648,43.96796803,130.47,130.43,0.03]
[1742141676252,9.7125,130.47,130.43,0.03]
[1742141676452,43.96796803,130.47,130.43,0.03]
[1742141677057,2.0479,130.47,130.43,0.03]
[1742141677361,2.0479,130.47,130.43,34.28546803]
[1742141677871,34.25546803,130.46,130.43,0.03]
[1742141678094,34.25546803,130.44,130.43,0.03]
[1742141678254,28.8739,130.47,130.43,0.03]
[1742141678563,7.6657,130.45,130.43,0.03]
[1742141678764,41.92116803,130.45,130.43,0.03]
[1742141679165,41.92086803,130.46,130.43,0.03]
[1742141679366,63.12936803,130.47,130.43,0.03]
[1742141679662,34.25546803,130.46,130.43,0.03]
[1742141679966,34.25546803,130.45,130.43,0.03]
[1742141680180,34.25546803,130.44,130.43,0.03]
[1742141680554,41.92176803,130.44,130.43,0.03]
[1742141680868,41.92176803,130.44,130.43,0.0001]
[1742141680869,42.20609117,130.44,130.43,0.0001]
[1742141681165,67.72479117,130.44,130.38,0.03]
[1742141681356,34.25546803,130.41,130.38,0.03]
[1742141681665,34.25546803,130.42,130.38,0.03]
[1742141681867,34.25546803,130.43,130.38,0.03]
[1742141682054,34.25546803,130.42,130.38,0.03]
[1742141682572,41.92336803,130.42,130.38,0.03]
[1742141682748,7.6679,130.42,130.38,0.03]
[1742141682954,34.25546803,130.4,130.38,0.03]
[1742141683961,34.25546803,130.41,130.38,0.03]
[1742141684166,41.92296803,130.43,130.38,34.28546803]
[1742141684659,7.6675,130.43,130.38,41.95516803]
[1742141685061,6.3528,130.44,130.4,34.25546803]
[1742141685851,2.0479,130.47,130.42,34.25546803]
[1742141686050,2.0479,130.47,130.38,36.9344]
[1742141686262,36.30336803,130.47,130.42,34.25546803]
[1742141686469,34.25546803,130.46,130.38,36.9344]
[1742141686785,41.92116803,130.45,130.39,34.25546803]
[1742141687026,34.25546803,130.43,130.38,44.34546803]
[1742141687487,34.25546803,130.42,130.38,10.09]
[1742141687656,26.8301,130.45,130.38,0.03]
[1742141687862,34.25546803,130.42,130.38,0.03]
[1742141688367,18.933972,130.44,130.38,0.03]
[1742141688577,34.25546803,130.4,130.38,0.03]
[1742141688779,34.25546803,130.41,130.38,0.03]
[1742141689147,34.25546803,130.4,130.38,0.03]
[1742141690083,26.8342,130.43,130.38,34.28546803]
[1742141690285,41.92236803,130.43,130.38,34.28546803]
[1742141690466,34.25546803,130.41,130.38,0.03]
[1742141690789,34.25546803,130.42,130.38,0.03]
[1742141690990,7.6681,130.41,130.38,0.03]
[1742141691383,34.25546803,130.4,130.38,0.03]
[1742141691571,34.25546803,130.39,130.38,0.03]
[1742141691761,41.92356803,130.41,130.38,0.03]
[1742141691966,7.6681,130.41,130.38,0.03]
[1742141693582,41.92356803,130.41,130.38,0.03]
[1742141694677,7.6681,130.41,130.38,0.03]
[1742141695392,7.6675,130.42,130.38,0.03]
[1742141695597,34.25546803,130.41,130.38,0.03]
[1742141695992,41.92296803,130.42,130.38,0.03]
[1742141697291,34.25546803,130.41,130.38,0.03]
[1742141697476,34.25546803,130.42,130.38,0.03]
[1742141697908,34.25546803,130.39,130.38,0.03]
[1742141698203,34.25546803,130.4,130.38,0.03]
[1742141698496,34.25546803,130.41,130.38,0.03]
[1742141698990,7.6687,130.4,130.38,0.03]
[1742141699195,34.25546803,130.39,130.38,0.03]
[1742141700694,7.6687,130.4,130.38,0.03]
[1742141701075,41.92356803,130.41,130.38,0.03]
[1742141701271,34.25546803,130.39,130.38,0.03]
[1742141701783,26.8384,130.41,130.38,0.03]
[1742141702049,73.37432314,130.25,130.24,9.502e-05]
[1742141702291,20.0,130.17,130.13,0.063]
[1742141702499,34.25546803,130.16,130.13,0.063]
[1742141702685,34.25546803,130.2,130.13,0.063]
[1742141702989,41.93946803,130.14,130.13,0.063]
[1742141703193,111.48339798,130.14,130.12,0.06300001]
[1742141703377,122.44904684,130.13,130.08,11.59581736]
[1742141703570,51.75753742,130.09,130.08,11.59581736]
[1742141703770,51.75753742,130.1,130.08,11.59581736]
[1742141704800,27.03616157,130.14,130.08,11.59581736]
[1742141704801,51.75753742,130.11,130.08,11.59581736]
[1742141704981,51.75753742,130.09,130.06,0.063]
[1742141705181,51.89969899,130.07,130.06,0.063]
[1742141705378,70.69150942,130.07,130.06,0.063]
[1742141706091,122.44904684,130.07,130.06,0.063]
[1742141706290,0.14216157,130.06,130.05,0.063]
[1742141706498,0.14216157,130.06,130.02,0.063]
[1742141706499,18.933972,130.06,130.02,0.063]
[1742141706713,15.66689133,130.07,130.02,0.063]
[1742141707084,15.66689133,130.07,130.05,51.75753742]
[1742141707317,15.66689133,130.07,130.06,51.75753742]
[1742141707605,15.66689133,130.07,130.05,51.75753742]
[1742141707786,15.66689133,130.06,130.02,0.063]
[1742141708085,15.66689133,130.06,130.0,0.063]
[1742141708086,15.66689133,130.06,130.05,51.75753742]
[1742141708713,68.44370383,130.05,130.03,10.32]
[1742141708902,68.44370383,130.05,130.01,51.75753742]
[1742141709209,68.44370383,130.05,130.02,51.75753742]
[1742141709396,15.66689133,130.04,130.02,51.75753742]
[1742141709588,15.66689133,130.04,129.97,28.96964886]
[1742141709786,15.66689133,130.04,129.97,8.53994007]
[1742141709988,51.75753742,130.02,129.94,0.14216157]
[1742141710194,51.75753742,130.02,129.96,51.75753742]
[1742141710598,11.7084087,129.98,129.96,51.75753742]
[1742141710909,11.7084087,129.98,129.95,51.75753742]
[1742141711110,11.7084087,129.98,129.97,51.75753742]
[1742141711787,6.5376598,129.99,129.97,51.89969899]
[1742141711984,6.5376598,129.99,129.98,51.75753742]
[1742141712602,46.83363482,130.01,129.98,51.75753742]
[1742141712803,46.83363482,130.01,130.0,51.75753742]
[1742141712998,46.83363482,130.01,129.99,51.75753742]
[1742141713186,46.83363482,130.01,129.97,20.03]
[1742141713391,46.83363482,130.01,130.0,51.75753742]
[1742141716206,46.83363482,130.01,130.0,51.89969899]
[1742141716508,46.83363482,130.01,130.0,152.14932881]
[1742141716707,46.83363482,130.01,130.0,73.90768096]
[1742141717010,46.83363482,130.01,130.0,51.75753742]
[1742141717187,46.83363482,130.01,129.97,0.03]
[1742141717391,20.0,129.94,129.92,0.063]
[1742141717588,21.15347672,129.93,129.92,0.063]
[1742141717810,71.75753742,129.93,129.92,0.063]
[1742141718009,20.0,129.93,129.92,0.063]
[1742141718207,71.75753742,129.93,129.92,0.063]
[1742141718599,51.75753742,129.93,129.92,0.063]
[1742141718797,100.293972,129.93,129.87,2.3007658]
[1742141719013,90.40718628,129.88,129.87,2.3007658]
[1742141719797,90.69150942,129.88,129.87,2.3007658]
[1742141720412,90.40718628,129.88,129.87,2.3007658]
[1742141720608,70.40718628,129.88,129.87,2.3007658]
[1742141720791,71.70282457,129.88,129.87,2.3007658]
[1742141720993,71.84498614,129.88,129.87,2.3007658]
[1742141721191,79.54438614,129.88,129.87,2.3007658]
[1742141721400,79.54438614,129.88,129.84,0.03]
[1742141721401,0.28432314,129.85,129.84,0.03]
[1742141721593,0.14216157,129.8,129.67,73.76551939]
[1742141721797,51.75753742,129.75,129.67,7.7118]
[1742141722012,1.15347672,129.79,129.68,0.14216157]
[1742141722311,51.75753742,129.81,129.75,19.5]
[1742141722512,1.15347672,129.87,129.77,51.75753742]
[1742141722812,0.28432314,129.85,129.77,51.75753742]
[1742141723005,1.15347672,129.88,129.81,51.75753742]
[1742141723212,51.75753742,129.86,129.81,51.75753742]
[1742141723611,51.75753742,129.86,129.77,111.01181043]
[1742141723612,51.75753742,129.82,129.77,11.42]
[1742141723814,51.75753742,129.82,129.77,63.17753742]
[1742141724117,51.75753742,129.8,129.74,203.56]
[1742141724429,51.75753742,129.8,129.75,51.75753742]
[1742141724913,51.75753742,129.81,129.75,51.75753742]
[1742141725121,51.75753742,129.82,129.75,18.933972]
[1742141725418,51.75753742,129.83,129.78,51.75753742]
[1742141726017,51.75753742,129.83,129.77,51.75753742]
[1742141726397,51.75753742,129.83,129.78,51.75753742]
[1742141726609,51.75753742,129.84,129.79,51.75753742]
[1742141726820,51.75753742,129.86,129.8,51.75753742]
[1742141727027,51.75753742,129.85,129.79,51.75753742]
[1742141727521,51.75753742,129.84,129.78,59.46263742]
[1742141727700,51.75753742,129.83,129.78,7.7051]
[1742141727897,51.75753742,129.85,129.79,51.75753742]
[1742141728220,51.75753742,129.84,129.79,51.75753742]
[1742141728432,71.75753742,129.86,129.8,51.75753742]
[1742141728720,51.75753742,129.85,129.8,51.75753742]
[1742141729020,51.75753742,129.88,129.82,71.75753742]
[1742141729416,1.15347672,129.9,129.83,59.45983742]
[1742141729727,51.75753742,129.9,129.84,51.75753742]
[1742141730015,51.75753742,129.88,129.83,59.45983742]
[1742141730219,51.75753742,129.89,129.84,51.75753742]
[1742141730519,51.75753742,129.91,129.85,51.75753742]
[1742141730695,51.75753742,129.9,129.82,45.60984886]
[1742141730893,20.08744872,129.94,129.83,51.75753742]
[1742141730894,51.75753742,129.89,129.83,51.75753742]
[1742141731207,0.14216157,129.9,129.79,30.5404]
[1742141731412,20.0,129.89,129.82,51.75753742]
[1742141731603,19.94528715,129.91,129.83,51.75753742]
[1742141731802,12.7688216,129.88,129.86,51.75753742]
[1742141732524,2.16e-05,129.88,129.87,52.04186056]
[1742141732697,2.16e-05,129.88,129.87,70.69150942]
[1742141733126,9.44377481,129.92,129.91,20.0]
[1742141733426,9.44377481,129.92,129.91,79.45513742]
[1742141733717,51.75753742,129.98,129.91,79.45513742]
[1742141733908,1.15347672,130.0,129.94,51.75753742]
[1742141733909,51.75753742,130.0,129.94,51.75753742]
[1742141734112,51.75753742,129.99,129.91,46.9416]
[1742141734417,0.063,130.01,129.96,51.75753742]
[1742141734716,0.063,130.01,129.98,51.75753742]
[1742141735098,0.063,130.01,129.99,51.75753742]
[1742141735309,0.063,130.01,129.96,11.16]
[1742141735515,0.063,130.01,129.99,51.75753742]
[1742141735923,0.063,130.01,130.0,51.75753742]
[1742141736305,0.063,130.01,129.98,26.9271]
[1742141736615,0.063,130.01,129.98,78.68463742]
[1742141736811,0.063,130.01,129.99,51.75753742]
[1742141737206,0.063,130.01,130.0,51.75753742]
[1742141737407,0.063,130.01,130.0,59.44983742]
[1742141737703,0.0001,130.01,130.0,59.44983742]
[1742141738609,0.0001,130.01,130.0,7.6923]
[1742141738814,0.0001,130.01,130.0,59.44983742]
[1742141739009,0.0001,130.01,130.0,59.73416056]
[1742141739417,0.0001,130.01,130.0,59.44983742]
[1742141739598,0.0001,130.01,130.0,59.73416056]
[1742141740520,0.0001,130.01,130.0,59.44983742]
[1742141741309,0.0001,130.01,130.0,59.73416056]
[1742141743433,0.0001,130.01,130.0,159.18380942]
[1742141743628,51.75753742,130.12,130.04,20.14216157]
[1742141743939,51.75753742,130.1,130.05,51.75753742]
[1742141744438,51.75753742,130.11,130.06,51.75753742]
[1742141744607,51.75753742,130.11,130.05,51.75753742]
[1742141744934,18.64964886,130.12,130.05,51.75753742]
[1742141745139,51.75753742,130.1,130.05,51.75753742]
[1742141745599,51.75753742,130.1,130.04,20.0]
[1742141745805,51.75753742,130.09,130.04,59.44733742]
[1742141746021,51.75753742,130.08,130.04,7.6898]
[1742141746223,51.75753742,130.08,130.03,79.44783742]
[1742141746609,51.75753742,130.1,130.04,51.75753742]
[1742141746825,7.30497672,130.13,130.06,51.75753742]
[1742141747067,6.1515,130.13,130.07,51.75753742]
[1742141747235,57.90903742,130.13,130.08,51.75753742]
[1742141747408,51.75753742,130.1,130.03,107.85876157]
[1742141747609,51.75753742,130.09,130.03,26.9166]